[Event "*** Titled Tuesday Blitz"]
[Site "Chess.com"]
[Date "2021.03.09"]
[Round "10"]
[White "andriipalchuk"]
[Black "Saxar85"]
[Result "0-1"]
[WhiteElo "2580"]
[BlackElo "2761"]
[TimeControl "180+1"]
[EndTime "11:59:47 PST"]
[Termination "Saxar85 won by resignation"]

1. d4 {[%clk 0:03:00.9]} 1... Nf6 {[%clk 0:02:59.1]} 2. c4 {[%clk 0:03:00.9]}
2... d6 {[%clk 0:02:59]} 3. Nf3 {[%clk 0:02:59.9]} 3... Bg4 {[%clk 0:02:58.3]}
4. Qb3 {[%clk 0:02:55.7]} 4... b6 {[%clk 0:02:54.8]} 5. g3 {[%clk 0:02:55]} 5...
Nc6 {[%clk 0:02:49.6]} 6. Bg2 {[%clk 0:02:54.5]} 6... g6 {[%clk 0:02:41]} 7. O-O
{[%clk 0:02:28.1]} 7... Bg7 {[%clk 0:02:40.3]} 8. h3 {[%clk 0:02:20.1]} 8... Bd7
{[%clk 0:02:35.2]} 9. Rd1 {[%clk 0:02:19]} 9... O-O {[%clk 0:02:32.5]} 10. Nbd2
{[%clk 0:02:00.4]} 10... Rb8 {[%clk 0:02:24.9]} 11. Qc2 {[%clk 0:01:54.9]} 11...
e5 {[%clk 0:02:19.9]} 12. dxe5 {[%clk 0:01:51.4]} 12... dxe5 {[%clk 0:02:16.8]}
13. a3 {[%clk 0:01:33.4]} 13... Qc8 {[%clk 0:02:15.6]} 14. Kh2 {[%clk
0:01:31.6]} 14... Bf5 {[%clk 0:02:11.7]} 15. Qa4 {[%clk 0:01:26.4]} 15... Bd7
{[%clk 0:02:04.5]} 16. Qc2 {[%clk 0:01:26.3]} 16... Re8 {[%clk 0:02:04.4]} 17.
Ne4 {[%clk 0:01:06.9]} 17... Bf5 {[%clk 0:02:01.9]} 18. Nxf6+ {[%clk 0:01:06.8]}
18... Bxf6 {[%clk 0:02:01.1]} 19. e4 {[%clk 0:01:06.2]} 19... Be6 {[%clk
0:01:55.6]} 20. Be3 {[%clk 0:01:05.7]} 20... Na5 {[%clk 0:01:51.4]} 21. Nd2
{[%clk 0:00:42.8]} 21... c5 {[%clk 0:01:50.2]} 22. b4 {[%clk 0:00:38.4]} 22...
Nc6 {[%clk 0:01:33.3]} 23. bxc5 {[%clk 0:00:37.8]} 23... bxc5 {[%clk 0:01:33.5]}
24. Bxc5 {[%clk 0:00:38.5]} 24... Nd4 {[%clk 0:01:33.3]} 25. Bxd4 {[%clk
0:00:38.6]} 25... exd4 {[%clk 0:01:33.1]} 26. Rab1 {[%clk 0:00:37.6]} 26... Qa6
{[%clk 0:01:19.9]} 27. Qd3 {[%clk 0:00:21.7]} 27... Qa5 {[%clk 0:01:19.7]} 28.
Bf1 {[%clk 0:00:21.3]} 28... Qc3 {[%clk 0:01:18.3]} 29. Rdc1 {[%clk 0:00:16.5]}
29... Qa5 {[%clk 0:01:10.4]} 30. c5 {[%clk 0:00:14.9]} 30... Rxb1 {[%clk
0:01:07.7]} 31. Nxb1 {[%clk 0:00:15.5]} 31... Rc8 {[%clk 0:01:01.4]} 32. Qc2
{[%clk 0:00:14.5]} 32... Be7 {[%clk 0:00:57.9]} 33. c6 {[%clk 0:00:11.9]} 33...
Qb6 {[%clk 0:00:49.2]} 34. Nd2 {[%clk 0:00:11.6]} 34... Bxa3 {[%clk 0:00:47.8]}
35. Ra1 {[%clk 0:00:07.7]} 35... Bb4 {[%clk 0:00:47.5]} 36. Qd3 {[%clk 0:00:03]}
36... a5 {[%clk 0:00:41.9]} 37. e5 {[%clk 0:00:03.1]} 37... Qxc6 {[%clk
0:00:35.8]} 38. Ne4 {[%clk 0:00:03.7]} 38... Bf5 {[%clk 0:00:35.3]} 39. Bg2
{[%clk 0:00:04.3]} 39... Bxe4 {[%clk 0:00:25.7]} 40. Bxe4 {[%clk 0:00:04]} 40...
Qc3 {[%clk 0:00:25.7]} 41. Rd1 {[%clk 0:00:04.5]} 41... Qxd3 {[%clk 0:00:25.3]}
42. Bxd3 {[%clk 0:00:04.6]} 42... a4 {[%clk 0:00:23.7]} 43. Kg2 {[%clk
0:00:05.2]} 43... a3 {[%clk 0:00:23.3]} 44. Ra1 {[%clk 0:00:04.7]} 44... Ra8
{[%clk 0:00:20.6]} 45. Be4 {[%clk 0:00:04.7]} 45... Ra5 {[%clk 0:00:19.9]} 46.
f4 {[%clk 0:00:05.1]} 46... a2 {[%clk 0:00:18]} 47. Bd5 {[%clk 0:00:05.4]} 47...
Rxd5 {[%clk 0:00:17.6]} 48. Rxa2 {[%clk 0:00:06.1]} 48... d3 {[%clk 0:00:17.7]}
49. Kf1 {[%clk 0:00:06.8]} 49... d2 {[%clk 0:00:17.8]} 0-1

[Event "*** Titled Tuesday Blitz"]
[Site "Chess.com"]
[Date "2021.03.09"]
[Round "10"]
[White "Niktlt"]
[Black "attack2mateU"]
[Result "0-1"]
[WhiteElo "2478"]
[BlackElo "2748"]
[TimeControl "180+1"]
[EndTime "11:59:48 PST"]
[Termination "attack2mateU won by resignation"]

1. c4 {[%clk 0:03:00.9]} 1... g6 {[%clk 0:02:59.6]} 2. Nc3 {[%clk 0:02:56.9]}
2... c5 {[%clk 0:02:59.5]} 3. g3 {[%clk 0:02:54.1]} 3... Bg7 {[%clk 0:02:59.2]}
4. Bg2 {[%clk 0:02:54.6]} 4... Nc6 {[%clk 0:02:59.3]} 5. e3 {[%clk 0:02:54.8]}
5... e6 {[%clk 0:02:55]} 6. Nge2 {[%clk 0:02:54.8]} 6... Nge7 {[%clk 0:02:55.1]}
7. O-O {[%clk 0:02:54.7]} 7... O-O {[%clk 0:02:55.1]} 8. d4 {[%clk 0:02:50.8]}
8... cxd4 {[%clk 0:02:55]} 9. exd4 {[%clk 0:02:51.7]} 9... d5 {[%clk 0:02:55.2]}
10. cxd5 {[%clk 0:02:52.6]} 10... Nxd5 {[%clk 0:02:55.1]} 11. Nxd5 {[%clk
0:02:42.8]} 11... exd5 {[%clk 0:02:56]} 12. Be3 {[%clk 0:02:42.9]} 12... Bg4
{[%clk 0:02:55.9]} 13. h3 {[%clk 0:02:37.2]} 13... Bxe2 {[%clk 0:02:55.7]} 14.
Qxe2 {[%clk 0:02:38.1]} 14... Bxd4 {[%clk 0:02:54.4]} 15. Rfd1 {[%clk
0:02:26.6]} 15... Re8 {[%clk 0:02:49.7]} 16. Qf3 {[%clk 0:02:12]} 16... Bxe3
{[%clk 0:02:31.6]} 17. fxe3 {[%clk 0:02:12.9]} 17... Qb6 {[%clk 0:02:30.2]} 18.
Qf2 {[%clk 0:02:11.2]} 18... Rxe3 {[%clk 0:02:20.8]} 19. Rxd5 {[%clk 0:02:09.9]}
19... Rxg3 {[%clk 0:02:17.3]} 20. Qxb6 {[%clk 0:02:08.9]} 20... axb6 {[%clk
0:02:18.2]} 21. Rd7 {[%clk 0:02:09.6]} 21... Rd8 {[%clk 0:02:11.7]} 22. Rad1
{[%clk 0:01:57.1]} 22... Rxd7 {[%clk 0:02:06.1]} 23. Rxd7 {[%clk 0:01:58]} 23...
Ne5 {[%clk 0:01:57]} 24. Rxb7 {[%clk 0:01:53.8]} 24... Nc4 {[%clk 0:01:57.3]}
25. Kf2 {[%clk 0:01:37.8]} 25... Rg5 {[%clk 0:01:15.7]} 26. b3 {[%clk
0:01:32.9]} 26... Rf5+ {[%clk 0:01:14.2]} 27. Ke2 {[%clk 0:01:29.4]} 27... Re5+
{[%clk 0:01:13.8]} 28. Kf2 {[%clk 0:01:29]} 28... Ne3 {[%clk 0:01:01.3]} 29. Bf3
{[%clk 0:01:03.7]} 29... Re6 {[%clk 0:00:41.6]} 30. b4 {[%clk 0:00:57.3]} 30...
Nc2 {[%clk 0:00:34]} 31. Bd5 {[%clk 0:00:30]} 31... Rf6+ {[%clk 0:00:33.5]} 32.
Ke2 {[%clk 0:00:29.2]} 32... Nxb4 {[%clk 0:00:34.1]} 33. Bb3 {[%clk 0:00:27.7]}
33... Nc6 {[%clk 0:00:28.8]} 34. Ke3 {[%clk 0:00:24.1]} 34... Na5 {[%clk
0:00:18.1]} 35. Rb8+ {[%clk 0:00:24.2]} 35... Kg7 {[%clk 0:00:18.8]} 36. Bd5
{[%clk 0:00:24.8]} 36... h5 {[%clk 0:00:19.1]} 37. Ke4 {[%clk 0:00:18.3]} 37...
g5 {[%clk 0:00:19.1]} 38. Rc8 {[%clk 0:00:15.5]} 38... Rf4+ {[%clk 0:00:17]} 39.
Ke5 {[%clk 0:00:14.3]} 39... Rf6 {[%clk 0:00:09.1]} 40. Rc3 {[%clk 0:00:13.2]}
40... h4 {[%clk 0:00:08.7]} 41. Rc2 {[%clk 0:00:11.4]} 41... b5 {[%clk
0:00:06.9]} 42. Rc5 {[%clk 0:00:09.1]} 42... Nc4+ {[%clk 0:00:07.4]} 43. Bxc4
{[%clk 0:00:05.6]} 43... bxc4 {[%clk 0:00:08.3]} 44. Rxc4 {[%clk 0:00:06.5]}
44... Rf3 {[%clk 0:00:07.7]} 45. Rxh4 {[%clk 0:00:02.8]} 45... gxh4 {[%clk
0:00:07.2]} 0-1

[Event "*** Titled Tuesday Blitz"]
[Site "Chess.com"]
[Date "2021.03.09"]
[Round "10"]
[White "bazar-wokzal"]
[Black "Ladislav1969"]
[Result "0-1"]
[WhiteElo "2445"]
[BlackElo "2345"]
[TimeControl "180+1"]
[EndTime "11:59:48 PST"]
[Termination "Ladislav1969 won by checkmate"]

1. e4 {[%clk 0:03:00.9]} 1... c5 {[%clk 0:03:00.1]} 2. c3 {[%clk 0:03:00.8]}
2... e6 {[%clk 0:03:01]} 3. d4 {[%clk 0:03:00.6]} 3... d5 {[%clk 0:03:01.4]} 4.
e5 {[%clk 0:02:55.9]} 4... Nc6 {[%clk 0:03:00.1]} 5. Nf3 {[%clk 0:02:55.7]} 5...
Bd7 {[%clk 0:03:00]} 6. a3 {[%clk 0:02:55.1]} 6... f6 {[%clk 0:02:57.4]} 7. b4
{[%clk 0:02:53.2]} 7... cxd4 {[%clk 0:02:54]} 8. cxd4 {[%clk 0:02:54.1]} 8...
fxe5 {[%clk 0:02:45.3]} 9. dxe5 {[%clk 0:02:53.1]} 9... Qc7 {[%clk 0:02:42.2]}
10. Bb2 {[%clk 0:02:51.9]} 10... Nge7 {[%clk 0:02:37.7]} 11. Bd3 {[%clk
0:02:47.2]} 11... g6 {[%clk 0:02:29.5]} 12. O-O {[%clk 0:02:33.3]} 12... Bg7
{[%clk 0:02:29.1]} 13. Re1 {[%clk 0:02:33.3]} 13... O-O {[%clk 0:02:26.1]} 14.
Nbd2 {[%clk 0:02:27.2]} 14... Nf5 {[%clk 0:02:13.1]} 15. Rc1 {[%clk 0:02:23]}
15... a6 {[%clk 0:02:12.4]} 16. Nb3 {[%clk 0:02:19.3]} 16... Rac8 {[%clk
0:01:59.3]} 17. Nc5 {[%clk 0:02:18.7]} 17... Rf7 {[%clk 0:01:52]} 18. Ng5 {[%clk
0:02:18.3]} 18... Re7 {[%clk 0:01:51.1]} 19. f4 {[%clk 0:02:16.3]} 19... h6
{[%clk 0:01:41.7]} 20. Nf3 {[%clk 0:02:15.2]} 20... Be8 {[%clk 0:01:26.6]} 21.
g4 {[%clk 0:02:10.2]} 21... b6 {[%clk 0:01:19.4]} 22. Nxa6 {[%clk 0:02:06.7]}
22... Qa7 {[%clk 0:01:19]} 23. gxf5 {[%clk 0:02:05.6]} 23... gxf5 {[%clk
0:01:17.8]} 24. Qd2 {[%clk 0:01:51.4]} 24... Ra8 {[%clk 0:00:59.9]} 25. b5
{[%clk 0:01:47.9]} 25... Na5 {[%clk 0:00:57.9]} 26. Nd4 {[%clk 0:01:40.5]} 26...
Nc4 {[%clk 0:00:55]} 27. Bxc4 {[%clk 0:01:38]} 27... dxc4 {[%clk 0:00:54.7]} 28.
Rxc4 {[%clk 0:01:38.1]} 28... Bf8 {[%clk 0:00:48.3]} 29. Nc6 {[%clk 0:01:32.4]}
29... Bxc6 {[%clk 0:00:39.8]} 30. Rxc6 {[%clk 0:01:31.9]} 30... Rg7+ {[%clk
0:00:37.5]} 31. Kf1 {[%clk 0:01:24.9]} 31... Qb7 {[%clk 0:00:32.1]} 32. Rec1
{[%clk 0:01:14.2]} 32... Rxa6 {[%clk 0:00:18.3]} 33. bxa6 {[%clk 0:01:13.1]}
33... Qxa6+ {[%clk 0:00:18.9]} 34. Kf2 {[%clk 0:00:55.9]} 34... Qa4 {[%clk
0:00:12.6]} 35. R1c4 {[%clk 0:00:41.9]} 35... Qb3 {[%clk 0:00:10.6]} 36. Rc3
{[%clk 0:00:41.4]} 36... Qb5 {[%clk 0:00:09.8]} 37. Rxe6 {[%clk 0:00:33.2]}
37... Bc5+ {[%clk 0:00:05.9]} 38. Rxc5 {[%clk 0:00:32]} 38... Qxc5+ {[%clk
0:00:06.2]} 39. Bd4 {[%clk 0:00:31.4]} 39... Qd5 {[%clk 0:00:06.4]} 40. Re8+
{[%clk 0:00:12.2]} 40... Kf7 {[%clk 0:00:06.7]} 41. Qb4 {[%clk 0:00:12.1]} 41...
Rg2+ {[%clk 0:00:06.1]} 42. Ke1 {[%clk 0:00:09.6]} 42... Qe4+ {[%clk 0:00:06.2]}
43. Kd1 {[%clk 0:00:09.4]} 43... Qd3+ {[%clk 0:00:06.6]} 44. Kc1 {[%clk
0:00:08.3]} 44... Qc2# {[%clk 0:00:06.7]} 0-1

[Event "*** Titled Tuesday Blitz"]
[Site "Chess.com"]
[Date "2021.03.09"]
[Round "10"]
[White "Sanan_Sjugirov"]
[Black "Duhless"]
[Result "0-1"]
[WhiteElo "2899"]
[BlackElo "3027"]
[TimeControl "180+1"]
[EndTime "11:59:50 PST"]
[Termination "Duhless won on time"]

1. d4 {[%clk 0:03:00.9]} 1... Nf6 {[%clk 0:02:59.4]} 2. Nf3 {[%clk 0:03:01.1]}
2... c5 {[%clk 0:02:55.3]} 3. d5 {[%clk 0:03:00.2]} 3... b5 {[%clk 0:02:55.4]}
4. Bg5 {[%clk 0:02:59.9]} 4... g6 {[%clk 0:02:54.1]} 5. Bxf6 {[%clk 0:02:57.4]}
5... exf6 {[%clk 0:02:54.1]} 6. e3 {[%clk 0:02:48.7]} 6... a6 {[%clk 0:02:51.8]}
7. a4 {[%clk 0:02:37]} 7... b4 {[%clk 0:02:51.7]} 8. Nbd2 {[%clk 0:02:34.4]}
8... f5 {[%clk 0:02:48.7]} 9. Nc4 {[%clk 0:02:31.1]} 9... d6 {[%clk 0:02:48.4]}
10. a5 {[%clk 0:02:28.9]} 10... Bg7 {[%clk 0:02:44.4]} 11. Be2 {[%clk
0:02:25.5]} 11... O-O {[%clk 0:02:43.7]} 12. O-O {[%clk 0:02:25.3]} 12... Qc7
{[%clk 0:02:43.1]} 13. Qd2 {[%clk 0:02:18.9]} 13... Nd7 {[%clk 0:02:42]} 14. c3
{[%clk 0:02:14]} 14... Rb8 {[%clk 0:02:40.6]} 15. Qc2 {[%clk 0:02:09.7]} 15...
Re8 {[%clk 0:02:15.5]} 16. Rfd1 {[%clk 0:02:09]} 16... bxc3 {[%clk 0:02:13.6]}
17. bxc3 {[%clk 0:02:08.9]} 17... Nf6 {[%clk 0:02:14.2]} 18. Nb6 {[%clk
0:02:01.8]} 18... Ne4 {[%clk 0:02:13.4]} 19. Ra3 {[%clk 0:02:01.5]} 19... f4
{[%clk 0:01:37.4]} 20. exf4 {[%clk 0:01:51.7]} 20... Nxc3 {[%clk 0:01:31.3]} 21.
Rd2 {[%clk 0:01:19.1]} 21... Nxe2+ {[%clk 0:01:05.4]} 22. Rxe2 {[%clk 0:01:20]}
22... Bf5 {[%clk 0:01:05.7]} 23. Rxe8+ {[%clk 0:00:57.9]} 23... Rxe8 {[%clk
0:01:06.6]} 24. Qc4 {[%clk 0:00:58.2]} 24... Re4 {[%clk 0:00:39.7]} 25. Qxa6
{[%clk 0:00:57.6]} 25... h6 {[%clk 0:00:39.7]} 26. h3 {[%clk 0:00:51.8]} 26...
c4 {[%clk 0:00:32.6]} 27. Ra2 {[%clk 0:00:15.9]} 27... c3 {[%clk 0:00:29.9]} 28.
Qa8+ {[%clk 0:00:14.8]} 28... Kh7 {[%clk 0:00:29.1]} 29. Qc6 {[%clk 0:00:15.3]}
29... Qa7 {[%clk 0:00:08.3]} 30. g4 {[%clk 0:00:09.2]} 30... Rxf4 {[%clk
0:00:04.9]} 31. gxf5 {[%clk 0:00:09]} 31... Rxf3 {[%clk 0:00:05.2]} 32. fxg6+
{[%clk 0:00:08.8]} 32... fxg6 {[%clk 0:00:06.1]} 33. Qd7 {[%clk 0:00:03.5]}
33... Qa6 {[%clk 0:00:05.6]} 34. Qg4 {[%clk 0:00:03]} 34... Rf7 {[%clk
0:00:04.6]} 35. Qc4 {[%clk 0:00:02.6]} 35... Qa7 {[%clk 0:00:02.7]} 36. Kg2
{[%clk 0:00:02]} 36... Qe7 {[%clk 0:00:02.4]} 37. Qg4 {[%clk 0:00:02]} 37... Qc7
{[%clk 0:00:02.1]} 38. Qg3 {[%clk 0:00:01.8]} 38... c2 {[%clk 0:00:01.7]} 39.
Na8 {[%clk 0:00:02.2]} 39... Qb7 {[%clk 0:00:01.5]} 0-1

[Event "*** Titled Tuesday Blitz"]
[Site "Chess.com"]
[Date "2021.03.09"]
[Round "10"]
[White "ymoy"]
[Black "Azerichess"]
[Result "1-0"]
[WhiteElo "2659"]
[BlackElo "2941"]
[TimeControl "180+1"]
[EndTime "11:59:54 PST"]
[Termination "ymoy won by resignation"]

1. e4 {[%clk 0:03:00.9]} 1... c6 {[%clk 0:02:59.6]} 2. d4 {[%clk 0:03:00.3]}
2... d5 {[%clk 0:03:00.1]} 3. Nc3 {[%clk 0:03:00.7]} 3... dxe4 {[%clk
0:02:59.8]} 4. Nxe4 {[%clk 0:03:01.6]} 4... Bf5 {[%clk 0:02:58.1]} 5. Ng3 {[%clk
0:03:01.4]} 5... Bg6 {[%clk 0:02:58.7]} 6. h4 {[%clk 0:03:00.4]} 6... h6 {[%clk
0:02:57.7]} 7. Nf3 {[%clk 0:03:00.9]} 7... e6 {[%clk 0:02:52.9]} 8. h5 {[%clk
0:03:00]} 8... Bh7 {[%clk 0:02:52.9]} 9. Bd3 {[%clk 0:03:00.3]} 9... Bxd3 {[%clk
0:02:52.4]} 10. Qxd3 {[%clk 0:03:01.2]} 10... Nf6 {[%clk 0:02:52.7]} 11. Bf4
{[%clk 0:03:01]} 11... c5 {[%clk 0:02:49.4]} 12. O-O-O {[%clk 0:02:34.3]} 12...
Nc6 {[%clk 0:02:46.7]} 13. Rhe1 {[%clk 0:02:30.6]} 13... cxd4 {[%clk 0:02:26.9]}
14. Qb5 {[%clk 0:02:13.1]} 14... Bd6 {[%clk 0:01:51.9]} 15. Bxd6 {[%clk
0:02:10.4]} 15... Qxd6 {[%clk 0:01:52.8]} 16. Rxd4 {[%clk 0:02:08.5]} 16... Qc7
{[%clk 0:01:50.7]} 17. Ne5 {[%clk 0:02:06.4]} 17... O-O {[%clk 0:01:49.8]} 18.
Nxc6 {[%clk 0:02:03.2]} 18... bxc6 {[%clk 0:01:50.7]} 19. Qe5 {[%clk 0:02:02.3]}
19... Qb6 {[%clk 0:01:40.4]} 20. Ne4 {[%clk 0:02:00.4]} 20... Nxe4 {[%clk
0:01:38]} 21. Rdxe4 {[%clk 0:01:54.4]} 21... Rae8 {[%clk 0:01:10.8]} 22. Rg4
{[%clk 0:01:50.1]} 22... f6 {[%clk 0:01:11]} 23. Qe2 {[%clk 0:01:49.5]} 23...
Kh8 {[%clk 0:01:05.7]} 24. Rc4 {[%clk 0:01:43.3]} 24... Qa5 {[%clk 0:01:05]} 25.
Kb1 {[%clk 0:01:42]} 25... Qd5 {[%clk 0:01:00]} 26. f4 {[%clk 0:01:38.8]} 26...
Rd8 {[%clk 0:01:00.2]} 27. Re4 {[%clk 0:01:35.3]} 27... Rd6 {[%clk 0:00:55]} 28.
b3 {[%clk 0:01:34.5]} 28... Re8 {[%clk 0:00:49]} 29. g4 {[%clk 0:01:32.8]} 29...
a5 {[%clk 0:00:48.3]} 30. a4 {[%clk 0:01:28.7]} 30... Qc5 {[%clk 0:00:48]} 31.
Kb2 {[%clk 0:01:25.6]} 31... f5 {[%clk 0:00:40.1]} 32. Rc4 {[%clk 0:01:21.6]}
32... Qd5 {[%clk 0:00:37.4]} 33. g5 {[%clk 0:01:20.5]} 33... hxg5 {[%clk
0:00:37.4]} 34. fxg5 {[%clk 0:01:21.4]} 34... e5 {[%clk 0:00:37.9]} 35. Qe3
{[%clk 0:01:18.8]} 35... Qe6 {[%clk 0:00:22.1]} 36. Qb6 {[%clk 0:01:12.1]} 36...
e4 {[%clk 0:00:20]} 37. Qxa5 {[%clk 0:01:09.9]} 37... e3 {[%clk 0:00:20.2]} 38.
Rf4 {[%clk 0:01:06.7]} 38... Rd5 {[%clk 0:00:14]} 39. Qc3 {[%clk 0:01:06.7]}
39... Kh7 {[%clk 0:00:12.2]} 40. h6 {[%clk 0:01:04]} 40... Qe5 {[%clk
0:00:09.9]} 41. Rxe3 {[%clk 0:01:03.5]} 41... Qxc3+ {[%clk 0:00:08.5]} 42. Rxc3
{[%clk 0:01:04.4]} 42... gxh6 {[%clk 0:00:08.7]} 43. gxh6 {[%clk 0:01:03.9]}
43... Kxh6 {[%clk 0:00:09.6]} 44. Rxc6+ {[%clk 0:00:58.5]} 44... Kg5 {[%clk
0:00:08.4]} 45. Rf1 {[%clk 0:00:59.4]} 45... f4 {[%clk 0:00:08.1]} 46. b4 {[%clk
0:00:56.9]} 46... Rf5 {[%clk 0:00:06.9]} 47. b5 {[%clk 0:00:51.5]} 47... f3
{[%clk 0:00:07.2]} 48. Rc7 {[%clk 0:00:51.5]} 48... Kf4 {[%clk 0:00:04.5]} 49.
Kb3 {[%clk 0:00:48.9]} 49... Re3+ {[%clk 0:00:02.5]} 50. c3 {[%clk 0:00:47.1]}
50... Kg3 {[%clk 0:00:02.8]} 51. Rg7+ {[%clk 0:00:43.4]} 51... Kh2 {[%clk
0:00:03.3]} 52. b6 {[%clk 0:00:39.9]} 52... f2 {[%clk 0:00:03.8]} 53. b7 {[%clk
0:00:38.5]} 53... Re8 {[%clk 0:00:04.3]} 54. c4 {[%clk 0:00:34]} 54... Rff8
{[%clk 0:00:02.4]} 55. a5 {[%clk 0:00:32.7]} 1-0

[Event "*** Titled Tuesday Blitz"]
[Site "Chess.com"]
[Date "2021.03.09"]
[Round "10"]
[White "onnoelgersma"]
[Black "Nozdrachev_Leonid"]
[Result "1-0"]
[WhiteElo "2418"]
[BlackElo "2515"]
[TimeControl "180+1"]
[EndTime "11:59:55 PST"]
[Termination "onnoelgersma won on time"]

1. e4 {[%clk 0:03:00.9]} 1... d6 {[%clk 0:03:00.9]} 2. Nf3 {[%clk 0:02:54.1]}
2... Nf6 {[%clk 0:03:01.8]} 3. Nc3 {[%clk 0:02:52.6]} 3... e5 {[%clk 0:02:57.5]}
4. d4 {[%clk 0:02:51.2]} 4... Nbd7 {[%clk 0:02:56.3]} 5. Bc4 {[%clk 0:02:49.5]}
5... Be7 {[%clk 0:02:55.9]} 6. a4 {[%clk 0:02:49.5]} 6... O-O {[%clk 0:02:55.4]}
7. O-O {[%clk 0:02:50.1]} 7... c6 {[%clk 0:02:54.2]} 8. Re1 {[%clk 0:02:50.4]}
8... Qc7 {[%clk 0:02:54]} 9. h3 {[%clk 0:02:50.4]} 9... Re8 {[%clk 0:02:53.4]}
10. Qd3 {[%clk 0:02:49.8]} 10... Nf8 {[%clk 0:02:31.9]} 11. Ng5 {[%clk
0:02:22.6]} 11... Ne6 {[%clk 0:02:21]} 12. Nxe6 {[%clk 0:02:19.1]} 12... Bxe6
{[%clk 0:02:21.9]} 13. Bxe6 {[%clk 0:02:18.6]} 13... fxe6 {[%clk 0:02:21.6]} 14.
dxe5 {[%clk 0:02:19]} 14... dxe5 {[%clk 0:02:21.1]} 15. Qc4 {[%clk 0:02:16.6]}
15... Bf8 {[%clk 0:02:14.9]} 16. Bg5 {[%clk 0:02:12.4]} 16... Qa5 {[%clk
0:02:08.6]} 17. Rad1 {[%clk 0:01:47.7]} 17... Qb4 {[%clk 0:01:35.5]} 18. Qd3
{[%clk 0:01:19.9]} 18... Rad8 {[%clk 0:01:29.6]} 19. Qf3 {[%clk 0:00:55.5]}
19... Rxd1 {[%clk 0:01:24.9]} 20. Rxd1 {[%clk 0:00:56.4]} 20... Be7 {[%clk
0:01:19.2]} 21. b3 {[%clk 0:00:49.5]} 21... Rd8 {[%clk 0:01:16]} 22. Rxd8+
{[%clk 0:00:45.3]} 22... Bxd8 {[%clk 0:01:16.9]} 23. Qd3 {[%clk 0:00:36.1]}
23... Qd4 {[%clk 0:01:08]} 24. Bxf6 {[%clk 0:00:32.7]} 24... gxf6 {[%clk
0:01:04.5]} 25. Kf1 {[%clk 0:00:30.3]} 25... Bb6 {[%clk 0:01:02.2]} 26. Qxd4
{[%clk 0:00:30]} 26... exd4 {[%clk 0:00:54.1]} 27. Nd1 {[%clk 0:00:29.5]} 27...
Kf7 {[%clk 0:00:48.8]} 28. Ke2 {[%clk 0:00:28.7]} 28... Ke7 {[%clk 0:00:48.6]}
29. Nb2 {[%clk 0:00:28.6]} 29... Kd6 {[%clk 0:00:45]} 30. Nd3 {[%clk 0:00:22.3]}
30... Ba5 {[%clk 0:00:38.2]} 31. f4 {[%clk 0:00:21.7]} 31... Bc3 {[%clk
0:00:36.5]} 32. g4 {[%clk 0:00:21.4]} 32... b5 {[%clk 0:00:34.5]} 33. h4 {[%clk
0:00:16.5]} 33... a6 {[%clk 0:00:31]} 34. g5 {[%clk 0:00:15.5]} 34... Ke7 {[%clk
0:00:14.6]} 35. Kf3 {[%clk 0:00:15.1]} 35... Bd2 {[%clk 0:00:13.5]} 36. Kg4
{[%clk 0:00:13.9]} 36... Kf7 {[%clk 0:00:12.7]} 37. h5 {[%clk 0:00:13.9]} 37...
Kg7 {[%clk 0:00:07.8]} 38. gxf6+ {[%clk 0:00:13.7]} 38... Kxf6 {[%clk
0:00:08.7]} 39. e5+ {[%clk 0:00:14.1]} 39... Kf7 {[%clk 0:00:08.6]} 40. f5
{[%clk 0:00:14.5]} 40... Be3 {[%clk 0:00:06.7]} 41. f6 {[%clk 0:00:14.3]} 41...
Bg1 {[%clk 0:00:05.2]} 42. Kf3 {[%clk 0:00:14.3]} 42... Bh2 {[%clk 0:00:05]} 43.
Ke4 {[%clk 0:00:14.7]} 43... Bg1 {[%clk 0:00:02.6]} 44. Nc5 {[%clk 0:00:13.6]}
44... bxa4 {[%clk 0:00:02.2]} 45. bxa4 {[%clk 0:00:13.5]} 45... a5 {[%clk
0:00:02.5]} 46. Nb7 {[%clk 0:00:13.4]} 46... Be3 {[%clk 0:00:01.9]} 47. Nxa5
{[%clk 0:00:13.2]} 47... c5 {[%clk 0:00:01]} 48. Nb7 {[%clk 0:00:13.6]} 48... c4
{[%clk 0:00:01.5]} 49. Nd6+ {[%clk 0:00:14.1]} 1-0